[Event "SixDays Budapest March IM C 2025"]
[Site "Budapest"]
[Date "2025.03.26"]
[Round "5.5"]
[White "Sanjay Narayanan P S"]
[Black "Lau, Lut Yin Luke"]
[Result "0-1"]
[Annotator "TA"]
[ECO "C55"]
[WhiteElo "2169"]
[BlackElo "2240"]
[PlyCount "84"]
[EventDate "2025.03.23"]
[EventType "tourn"]
[EventCountry "HUN"]
[SourceTitle "playchess.com"]
[Source "ChessBase"]
[SourceQuality "1"]
[TimeControl "5400+30"]

{[%evp 15,84,18,27,21,45,12,24,0,0,-20,-22,-58,-58,-76,-60,-59,-54,-58,3,-108,-22,-27,-22,-46,-40,-40,-48,-36,-64,-57,-48,-57,-7,-13,0,0,0,-12,-5,-33,-1,-12,13,0,9,3,0,-67,0,13,0,0,0,0,0,-19,-31,-19,-6,-193,-149,-395,-395,-375,-239,-932,-735,-794,-556,-558,-347]} 1. e4 {[%emt 0:01:54]} e5 {[%emt 0:00:17]} 2. Nf3 {[%emt 0:00:07]} Nc6 {[%emt 0:00:16]} 3. d4 {[%emt 0:00:14]} exd4 {[%emt 0:00:22]} 4. Bc4 {[%emt 0:00:12]} Nf6 {[%emt 0:00:38]} 5. e5 {[%emt 0:00:11]} d5 {[%emt 0:00:32]} 6. Bb5 {[%emt 0:00:09]} Nd7 {[%emt 0:00:31]} 7. O-O {[%emt 0:01:01]} Be7 {[%emt 0:00:39]} 8. Bxc6 {[%emt 0:00:30]} bxc6 {[%emt 0:00:06]} 9. Nxd4 {[%emt 0:00:12] C56: Two Knights: 4 d4 exd4 5 0-0 Nxe4.} Nb8 {[%emt 0:00:14]} 10. Nc3 $1 {[%emt 0:03:35]} O-O {[%emt 0:00:49]} 11. Nde2 {[%emt 0:07:34] White has an edge.} Bb7 $146 {[%emt 0:09:05]} ({Predecessor:} 11... Re8 12. Ng3 Bc5 13. Na4 Bf8 14. f4 f6 15. exf6 Qxf6 16. f5 Ba6 17. Rf2 Nd7 {0-1 Sanjay Narayanan,P (1771)-Subhayan,K (2403) Udaipur Kingdom of Chess op 1st 2024 (3)}) 12. Ng3 {[%emt 0:10:01]} Re8 {[%emt 0:07:48]} 13. Qh5 {[%emt 0:11:36]} Nd7 {[%emt 0:09:11]} 14. Bf4 {[%emt 0:10:50]} Bf8 {[%emt 0:05:36]} 15. Rfe1 {[%emt 0:03:17]} g6 {[%emt 0:06:09] Dodges Nf5} 16. Qg4 {[%emt 0:03:13]} Bg7 {[%emt 0:04:25]} (16... Qe7 $15) 17. e6 {[%emt 0:04:50] [#]} (17. Bg5 $11 {was the only way to keep the balance.} Qc8 18. f4) 17... fxe6 {[%emt 0:05:00]} (17... f5 $1 $17 {[%cal Rf5g4]} 18. Qe2 Nc5) 18. Rxe6 $11 {[%emt 0:00:31]} Nf6 {[%emt 0:04:33]} 19. Qe2 {[%emt 0:09:28]} Qd7 {[%emt 0:02:06]} 20. Re1 {[%emt 0:02:16]} c5 {[%emt 0:03:09]} 21. Nb5 $1 {[%emt 0:06:05]} Ba6 $1 {[%emt 0:06:05]} 22. c4 {[%emt 0:01:49]} Bxb5 {[%emt 0:09:38]} 23. cxb5 {[%emt 0:00:28]} Kf7 {[%emt 0:00:59]} (23... c4 $15) 24. Re3 $1 {[%emt 0:08:34]} Ng4 {[%emt 0:05:57]} 25. Rxe8 {[%emt 0:04:12]} Rxe8 {[%emt 0:00:05] Successful Defense Black} 26. Qxe8+ {[%emt 0:02:00]} Qxe8 {[%emt 0:00:05]} 27. Rxe8 {[%emt 0:00:02]} Kxe8 {[%emt 0:00:02]} 28. Bxc7 {[%emt 0:02:43]} Bxb2 {[%emt 0:02:18][%mdl 4096] Endgame KBN-KBN} 29. Bb8 {[%emt 0:00:29][%cal Oa2a4]} Bd4 {[%emt 0:05:28]} 30. Bxa7 {[%emt 0:01:36]} Kd7 {[%emt 0:01:24][%cal Od7c7]} 31. Kf1 {[%emt 0:02:03]} ({White should play} 31. Ne2 $11 Bxf2+ 32. Kf1) 31... Kc7 {[%emt 0:05:24] Black is more active.} (31... Bxf2 $6 32. a4 $14) (31... Nxf2 32. Ne2 Be3 33. Nc3 $16) (31... Nxh2+ $15 32. Ke1 Ng4) 32. Ne2 {[%emt 0:00:39]} Kb7 $1 {[%emt 0:00:27]} 33. Nxd4 {[%emt 0:00:36]} Kxa7 {[%emt 0:00:01] KN-KN. White is a pawn up.} 34. Nc6+ {[%emt 0:02:51]} Kb6 {[%emt 0:00:52]} 35. Ne7 {[%emt 0:00:06]} d4 {[%emt 0:01:44][%mdl 1024] Black has compensation.} 36. a4 {[%emt 0:00:07]} c4 {[%emt 0:01:12][%cal Ob6c5] With the idea ...Kc5!.} 37. Ke2 $2 {[%emt 0:01:09]} (37. Nc6 $11 {and White stays safe.}) 37... d3+ {[%emt 0:02:01]} 38. Kf3 $2 {[%emt 0:01:09] [#] Now White is beyond hope.} (38. Kd2 $17 Kc5 39. b6 Kxb6 40. Nd5+ Kc5 41. Nc3) 38... Kc5 $1 $19 {[%emt 0:01:45]} 39. b6 {[%emt 0:01:02]} Kxb6 {[%emt 0:02:21][%cal Ob6c5] Hoping for ...Kc5!.} 40. Ke4 $2 {[%emt 0:00:37]} (40. Kxg4 $2 {is the wrong capture.} d2 41. Nd5+ Kc5 $19) (40. h3 Nf6 41. Ke3) 40... d2 {[%emt 0:00:28] Black is clearly winning.} (40... Nxh2 41. Kd4 Ka5 (41... d2 42. Nd5+ Ka5 43. Nc3 $11) 42. Nd5 $15) 41. Nd5+ {[%emt 0:00:14]} Kc5 {[%emt 0:00:25]} 42. Nc3 {[%emt 0:00:07]} Nxf2+ {[%emt 0:00:11] Weighted Error Value: White=0.41/Black=0.32  Loses game:     	White=2     	---        Mistake:       	White=3     	Black=4      Inaccurate:     	White=2     	Black=2      OK:         	White=8     	Black=8      Best:        	White=5     	Black=3      Strong:       	White=3     	Black=3} 0-1